bitfinex/quotes_ETHUSD_20240821
["timestamp","ask_amount","ask_price","bid_price","bid_amount"]
[1724224668406,1.655,2608.1,2607.4,0.08382583]
[1724224668587,1.655,2607.9,2607.4,1.56317326]
[1724224668798,1.655,2607.9,2607.4,4.56317326]
[1724224669526,1.655,2608.1,2607.5,2.3582]
[1724224669824,1.655,2608.1,2607.5,5.3582]
[1724224670125,1.655,2608.1,2607.6,0.08382583]
[1724224670289,1.655,2608.1,2607.6,0.77596316]
[1724224671004,5.07248965,2608.6,2607.6,0.77596316]
[1724224671326,1.655,2608.3,2607.7,2.4469]
[1724224671993,1.655,2608.3,2607.8,0.08382583]
[1724224672436,1.655,2608.3,2607.7,2.4469]
[1724224672601,1.655,2608.3,2607.9,0.08382583]
[1724224672808,1.655,2608.3,2607.8,0.31390373]
[1724224673005,1.655,2608.1,2608.0,0.08382583]
[1724224673196,1.655,2608.1,2607.7,2.4469]
[1724224673532,1.655,2607.9,2607.7,2.99159]
[1724224673823,1.655,2607.9,2607.8,0.08307146]
[1724224674232,1.655,2607.9,2607.4,2.2575]
[1724224674402,1.655,2607.9,2607.8,0.08307146]
[1724224674594,1.655,2607.9,2607.4,2.2575]
[1724224674793,1.655,2607.9,2607.8,0.08307146]
[1724224675024,1.655,2607.9,2607.5,3.52575]
[1724224675227,1.655,2607.9,2607.8,0.08307146]
[1724224675688,1.655,2607.9,2607.5,3.52575]
[1724224675892,1.655,2607.9,2607.6,0.08307146]
[1724224676088,1.655,2607.9,2607.6,0.66970361]
[1724224679801,1.655,2608.1,2607.6,0.66970361]
[1724224679998,2.4841,2608.6,2607.7,2.4544]
[1724224680226,1.655,2608.4,2607.7,2.4544]
[1724224680415,1.655,2608.4,2607.8,0.0829931]
[1724224680619,1.655,2608.4,2607.8,1.14370277]
[1724224680940,1.655,2608.2,2607.8,1.14370277]
[1724224681135,1.655,2608.0,2607.8,0.0829931]
[1724224681502,1.655,2608.0,2607.6,7.98663215]
[1724224681698,1.655,2607.7,2607.6,7.98663215]
[1724224681906,1.655,2607.7,2607.6,10.98663215]
[1724224684443,6.54273148,2608.2,2607.6,10.98663215]
[1724224684739,7.19700463,2608.2,2607.6,10.4]
[1724224685040,6.4657,2608.2,2607.6,10.4]
[1724224685609,6.4657,2608.2,2607.4,12.27]
[1724224689254,2.4937,2608.2,2607.5,2.4952]
[1724224691056,2.4075,2608.4,2607.5,2.4952]
[1724224691855,2.4075,2608.4,2607.6,0.08338493]
[1724224692045,2.4075,2608.4,2607.6,0.34124342]
[1724224697815,2.48453148,2608.4,2607.6,0.08338493]
[1724224698346,2.4075,2608.4,2607.6,0.08338493]
[1724224702974,2.3578,2608.2,2607.6,0.08338493]
[1724224704436,1.655,2607.8,2607.6,0.08338493]
[1724224714950,1.655,2608.0,2607.6,0.08338493]
[1724224722183,1.655,2607.8,2607.6,0.08338493]
[1724224722617,1.655,2607.8,2607.4,3.0]
[1724224722793,1.655,2607.8,2607.7,0.08324778]
[1724224722997,1.655,2607.8,2607.4,3.0]
[1724224723196,2.3425,2607.8,2607.7,0.08324778]
[1724224723414,2.4478,2607.7,2607.3,7.4]
[1724224723597,1.655,2607.4,2606.8,2.6917]
[1724224723799,1.655,2607.2,2606.8,2.307]
[1724224724692,1.655,2607.2,2606.8,5.307]
[1724224724888,1.655,2607.2,2606.8,6.61617]
[1724224726526,1.655,2607.4,2606.8,6.61617]
[1724224726707,1.655,2607.6,2607.0,2.29]
[1724224726916,5.77357047,2608.0,2607.1,0.3945]
[1724224726917,1.655,2607.8,2607.1,0.3945]
[1724224727121,1.655,2607.8,2607.0,2.29]
[1724224727564,1.655,2607.6,2607.0,2.29]
[1724224732135,1.655,2607.8,2607.0,2.29]
[1724224732824,1.655,2607.8,2607.1,1.655]
[1724224733021,1.655,2608.0,2607.2,2.4292]
[1724224733225,1.655,2608.0,2607.3,2.83762]
[1724224734447,1.655,2607.8,2607.3,2.83762]
[1724224736778,1.655,2607.8,2607.4,0.0782493]
[1724224740503,1.655,2607.6,2607.4,0.0782493]
[1724224740798,4.1055,2607.6,2607.1,7.4]
[1724224741008,1.655,2607.3,2606.9,2.3198]
[1724224743354,1.655,2607.3,2606.7,2.3562]
[1724224743554,1.655,2607.1,2606.7,2.3562]
[1724224743803,1.655,2606.9,2606.5,2.3562]
[1724224743939,1.64594312,2606.9,2606.5,2.3562]
[1724224744460,1.655,2606.7,2606.4,2.164]
[1724224745240,1.655,2606.7,2606.3,2.3021]
[1724224745443,1.655,2606.5,2606.0,10.0]
[1724224745655,1.655,2606.3,2606.0,10.0]
[1724224746422,1.655,2606.5,2606.0,10.0]
[1724224748960,2.4007,2606.8,2606.0,10.0]
[1724224749160,1.655,2606.6,2606.1,1.23962]
[1724224751810,1.655,2606.6,2606.2,0.07375659]
[1724224753095,3.8038163,2607.7,2606.5,2.4476]
[1724224753096,5.06846717,2607.5,2606.5,2.4476]
[1724224753296,5.06846717,2607.5,2606.6,1.655]
[1724224753297,1.655,2607.4,2606.6,1.655]
[1724224753498,1.655,2607.4,2606.7,0.71026]
[1724224753695,1.655,2607.4,2606.7,0.78401659]
[1724224754575,2.2584,2607.5,2606.7,0.78401659]
[1724224756774,2.2584,2607.5,2606.8,2.3735]
[1724224757421,2.2584,2607.5,2606.9,0.07375659]
[1724224764531,2.4508,2607.2,2606.9,0.07375659]
[1724224764706,0.07703148,2607.1,2606.2,2.3544]
[1724224765030,2.52783148,2607.2,2606.4,0.52581213]
[1724224765723,2.52783148,2607.2,2606.4,0.07397213]
[1724224765894,0.07703148,2607.1,2606.4,0.07397213]
[1724224766097,0.07703148,2607.1,2606.2,2.3544]
[1724224766301,2.4508,2607.2,2606.3,0.07408975]
[1724224766506,0.07703148,2607.1,2606.3,0.07408975]
[1724224766702,0.07703148,2607.1,2606.3,0.44090073]
[1724224767231,2.4508,2607.2,2606.3,0.44090073]
[1724224767421,2.4508,2607.2,2606.3,3.44090073]
[1724224767832,3.973,2607.0,2606.3,0.07408975]
[1724224768917,2.4508,2607.2,2606.3,0.07408975]
[1724224769243,2.4735,2607.4,2606.4,2.3684]
[1724224769415,0.52847779,2607.3,2606.5,0.24424898]
[1724224769611,2.4735,2607.4,2606.5,0.31907391]
[1724224769839,6.2558,2607.6,2606.6,2.3035]
[1724224770041,6.2558,2607.6,2606.6,5.3035]
[1724224770241,6.2558,2607.6,2606.7,0.07465828]
[1724224779256,9.06712105,2607.6,2606.7,0.07465828]
[1724224779425,0.90671211,2607.5,2606.7,0.07465828]
[1724224779625,3.973,2607.3,2606.7,0.07465828]
[1724224782313,0.07703148,2607.2,2606.7,0.07465828]
[1724224782539,2.2582,2607.1,2606.7,0.07465828]
[1724224782744,2.2582,2607.1,2606.3,2.2925]
[1724224782933,0.23352315,2607.0,2606.3,2.2925]
[1724224783141,0.23352315,2607.0,2606.4,0.07447202]
[1724224783729,4.20652315,2607.0,2606.4,0.07447202]
[1724224783925,3.973,2606.7,2606.4,0.07447202]
[1724224784241,3.973,2606.7,2606.0,12.4516]
[1724224784242,0.07703148,2606.6,2606.0,12.4516]
[1724224784429,0.63785,2606.6,2606.5,0.07448182]
[1724224784634,0.63785,2606.6,2606.0,12.4516]
[1724224784860,2.4055,2606.8,2606.5,0.07460926]
[1724224785069,2.4055,2606.8,2606.0,12.4516]
[1724224785233,2.4055,2606.8,2606.6,0.07460926]
[1724224785426,2.4055,2606.8,2606.0,12.4516]
[1724224785929,2.4055,2606.8,2606.1,0.07460926]
[1724224786131,0.52181535,2606.7,2606.1,0.0729426]
[1724224787296,0.52181535,2606.7,2606.2,2.3405]
[1724224787464,2.4262,2606.9,2606.2,2.41371713]
[1724224789373,0.07703148,2606.8,2606.2,2.41371713]
[1724224789575,5.24141941,2606.9,2606.2,2.41371713]
[1724224790076,0.07703148,2606.8,2606.2,0.07321713]
[1724224790395,0.07703148,2606.8,2606.0,12.3039]
[1724224790396,3.973,2606.4,2606.3,0.07317791]
[1724224790674,4.05003148,2606.4,2606.0,10.0]
[1724224790970,4.05003148,2606.4,2606.3,0.07362892]
[1724224791171,4.05003148,2606.4,2606.0,10.0]
[1724224791346,2.4464,2606.2,2606.0,10.0]
[1724224791537,2.52343148,2606.2,2606.1,0.07362892]
[1724224791936,0.68652509,2606.3,2606.1,0.07362892]
[1724224792154,9.23461941,2606.7,2606.1,0.07362892]
[1724224792341,6.4194,2606.7,2606.0,12.2701]
[1724224792545,9.23461941,2606.7,2606.0,10.0]
[1724224792742,2.81521941,2606.6,2606.0,10.0]
[1724224793334,9.23319496,2606.7,2606.0,10.0]
[1724224793651,4.18659388,2606.6,2606.0,10.0]
[1724224793848,1.37279892,2606.6,2606.1,0.07416835]
[1724224794263,1.37279892,2606.6,2606.0,10.0]
[1724224794812,1.37279892,2606.6,2606.1,0.07416835]
[1724224795138,1.37279892,2606.6,2606.0,10.0]
[1724224795339,1.06059939,2606.5,2606.0,10.0]
[1724224795575,1.06059939,2606.5,2606.1,0.07416835]
[1724224795877,2.3547,2606.4,2606.0,10.0]
[1724224796051,2.3547,2606.4,2606.2,0.07416835]
[1724224796252,2.3547,2606.4,2606.0,10.0]
[1724224796456,0.34152994,2606.3,2606.0,10.0]
[1724224796840,0.34152994,2606.3,2606.1,0.07416835]
[1724224801789,0.41856142,2606.3,2606.1,0.07416835]
[1724224801986,2.3174,2606.2,2606.1,0.07416835]
[1724224802568,2.39443148,2606.2,2606.1,0.07416835]
[1724224802873,3.06532762,2606.2,2606.1,0.07416835]
[1724224803257,2.98829614,2606.2,2606.1,0.07416835]
[1724224805498,0.67089614,2606.2,2606.1,0.07416835]
[1724224806667,0.74792762,2606.2,2606.1,0.07416835]
[1724224809087,0.67089614,2606.2,2606.1,0.07416835]
[1724224809287,6.2917,2606.4,2606.1,0.07416835]
[1724224809870,6.3273,2606.7,2606.1,2.36556835]
[1724224810198,6.3273,2606.7,2606.1,2.2914]
[1724224810199,3.0,2606.6,2606.1,2.2914]
[1724224810351,4.66925878,2606.6,2606.1,2.2914]
[1724224811766,4.66925878,2606.6,2606.0,10.0]
[1724224815775,0.4005842,2606.6,2606.0,10.0]
[1724224816141,2.2599,2606.9,2606.1,2.3371]
[1724224816409,5.06940072,2606.9,2606.1,2.3371]
[1724224816648,2.2599,2606.6,2606.0,10.0]
[1724224816973,2.2599,2606.6,2606.2,0.074747]
[1724224817173,2.2599,2606.6,2606.0,10.0]
[1724224823248,5.07141531,2606.6,2606.0,10.0]
[1724224824566,1.657,2606.1,2606.0,10.0]
[1724224824967,1.657,2606.1,2606.0,10.07460967]
[1724224828281,1.657,2606.3,2606.0,11.31578064]
[1724224828961,2.81151531,2606.6,2606.1,2.3792]
[1724224829160,1.657,2606.5,2606.1,2.3792]
[1724224829481,2.81151531,2606.8,2606.3,2.2557]
[1724224829781,1.657,2607.2,2606.4,2.33242679]
[1724224829983,2.81151531,2607.4,2606.7,2.4835]
[1724224830169,1.657,2607.5,2606.8,2.89755]
[1724224830371,1.657,2607.3,2606.8,2.89755]
[1724224830690,2.81151531,2607.7,2606.9,0.07411931]
[1724224831148,2.81151531,2607.7,2606.8,2.89755]
[1724224831340,2.81151531,2607.7,2606.9,0.589755]
[1724224831669,2.81151531,2607.6,2606.9,0.589755]
[1724224831967,5.09751531,2607.6,2606.9,0.589755]
[1724224832423,2.286,2607.6,2606.9,0.589755]
[1724224833175,2.286,2607.6,2606.9,0.57318068]
[1724224834372,3.973,2607.8,2607.1,2.3177]
[1724224834875,6.78538363,2607.8,2607.1,2.3177]
[1724224835487,3.973,2607.8,2607.1,2.3177]
[1724224835839,2.4606,2607.7,2606.4,2.3177]
[1724224836065,3.38519836,2607.7,2606.5,0.60534838]
[1724224836274,3.38519836,2607.7,2606.6,2.3177]
[1724224836461,3.38519836,2607.7,2606.6,2.39023898]
[1724224836678,3.38519836,2607.7,2606.6,5.39023898]
[1724224837003,1.0170582,2607.6,2606.7,0.8922009]
[1724224837211,1.0170582,2607.6,2606.7,3.8922009]
[1724224837550,1.0170582,2607.6,2606.8,0.07253898]
[1724224839099,1.0170582,2607.6,2606.9,2.3789]
[1724224839251,1.0170582,2607.6,2606.9,2.45145858]
[1724224839447,3.973,2607.8,2606.9,3.08582453]
[1724224839674,3.973,2607.8,2607.0,2.2985]
[1724224845417,16.5989,2608.1,2607.0,2.2985]
[1724224845556,6.3289,2608.1,2607.1,2.3536]
[1724224845756,0.63289,2608.0,2607.2,2.89986]
[1724224845978,0.63289,2608.0,2607.2,2.3645]
[1724224846400,3.973,2608.4,2607.2,2.3645]
[1724224846601,3.973,2608.4,2607.4,2.3226]
[1724224847101,10.0762321,2608.7,2607.6,2.3226]
[1724224847102,11.243,2608.7,2607.6,2.3226]
[1724224847257,1.63827321,2608.6,2607.6,2.3226]
[1724224847461,3.973,2608.7,2607.6,2.3226]
[1724224847790,3.973,2608.7,2607.7,0.07223516]
[1724224849901,3.973,2608.7,2607.8,2.4936]
[1724224850198,3.973,2608.7,2607.8,2.56462997]
[1724224850399,3.973,2608.7,2607.8,2.4936]
[1724224850704,0.63065,2608.6,2607.9,0.07102997]
[1724224851306,0.07703148,2608.5,2607.9,0.07102997]
[1724224853932,0.63065,2608.6,2607.9,0.07102997]
[1724224854622,1.655,2608.0,2607.9,0.07102997]
[1724224855293,1.655,2608.2,2607.9,0.07102997]
[1724224856132,1.655,2608.2,2608.0,2.41]
[1724224856345,1.655,2608.2,2608.0,2.48099079]
[1724224858919,1.655,2608.2,2608.0,0.07099079]
[1724224859121,0.40321,2608.1,2607.5,2.3305]
[1724224859332,1.655,2607.8,2607.5,2.3305]
[1724224860011,1.655,2608.0,2607.5,2.3305]
[1724224860323,1.655,2608.2,2607.5,2.3305]
[1724224860526,1.655,2608.2,2607.7,2.2999]
[1724224862336,2.73905214,2608.7,2607.7,2.2999]
[1724224862511,0.40055214,2608.7,2607.7,3.0]
[1724224862711,0.40055214,2608.7,2607.7,2.3886]
[1724224862948,0.40055214,2608.7,2607.9,2.3886]
[1724224866163,3.97,2608.5,2607.9,2.3886]
[1724224871567,3.97,2608.5,2607.9,5.3886]
[1724224871735,3.97,2608.5,2608.0,0.07105936]
[1724224876684,3.97,2608.5,2608.1,2.2501]
[1724224876889,3.97,2608.5,2608.2,0.0707753]
[1724224880048,3.97,2608.5,2607.9,5.2895]
[1724224880486,3.97,2608.5,2608.0,0.0707753]
[1724224882596,1.654,2608.1,2607.7,5.361]
[1724224883796,0.40055666,2608.9,2607.7,5.361]
[1724224883797,1.654,2607.9,2607.7,5.361]
[1724224884103,1.654,2607.9,2607.7,3.0]
[1724224886774,1.654,2607.9,2607.8,0.07082426]
[1724224886956,1.654,2607.9,2607.7,3.0]
[1724224887288,1.654,2607.9,2607.8,0.07082426]
[1724224887504,1.654,2607.9,2607.7,3.0]
[1724224887701,1.654,2607.9,2607.8,0.07083406]
[1724224888003,1.654,2607.9,2607.7,3.0]
[1724224888174,1.654,2607.9,2607.8,0.07083406]
[1724224888514,3.9081,2607.9,2607.8,0.07083406]
[1724224888823,3.9081,2607.9,2606.6,1.50206871]
[1724224888824,2.3295,2607.8,2607.0,9.7414]
[1724224889026,1.654,2607.4,2607.0,9.7414]
[1724224889485,1.654,2607.6,2607.0,9.7414]
[1724224889687,1.654,2607.8,2607.2,2.2824]
[1724224890485,1.654,2607.8,2607.2,5.2824]
[1724224890712,1.654,2607.8,2607.4,2.2824]
[1724224892565,2.2882,2608.1,2607.4,2.2824]
[1724224894116,2.2882,2608.1,2607.2,3.0]
[1724224894302,2.2882,2608.1,2607.3,0.397414]
[1724224894490,3.972,2607.6,2607.3,3.0]
[1724224894692,2.4383,2607.5,2607.1,3.0]
[1724224894891,2.4383,2607.8,2607.1,3.0]
[1724224901351,2.4383,2607.8,2607.2,2.3228]
[1724224901741,2.4383,2607.8,2607.3,0.06877658]
[1724224901943,2.4383,2607.8,2607.2,2.3228]
[1724224902143,2.4383,2607.8,2607.4,0.06877658]
[1724224902340,2.4383,2607.8,2607.2,2.3228]
[1724224902541,2.4383,2607.8,2607.5,0.06877658]
[1724224902731,2.4383,2607.8,2607.3,3.0]
[1724224902931,2.4383,2607.8,2607.6,0.06877658]
[1724224903136,2.4383,2607.8,2607.3,3.0]
[1724224903316,2.4383,2607.8,2607.7,0.06877658]
[1724224903512,2.4383,2607.8,2607.3,3.0]
[1724224903719,2.4383,2607.8,2607.7,0.06877658]
[1724224903920,2.4383,2607.8,2607.3,3.0]
[1724224904237,2.4383,2607.8,2607.2,2.3228]
[1724224904238,2.4383,2607.8,2607.7,0.06877658]
[1724224904420,2.4383,2607.8,2607.2,2.3228]
[1724224904622,2.4383,2607.8,2607.7,0.06877658]
[1724224904823,2.4383,2607.8,2607.2,2.3228]
[1724224905019,2.4383,2607.8,2607.7,0.06877658]
[1724224905260,2.4383,2607.8,2607.3,3.0]
[1724224905425,2.4383,2607.8,2607.7,0.06886475]
[1724224905631,2.4383,2607.8,2607.2,2.3228]
[1724224905845,2.4383,2607.8,2607.7,0.06886475]
[1724224906050,3.07933,2607.8,2607.2,2.3228]
[1724224906324,2.4383,2607.8,2607.2,2.3228]
[1724224906521,2.4383,2607.8,2607.3,0.06893332]
[1724224906749,2.4383,2607.8,2607.2,2.3228]
[1724224906945,2.4383,2607.8,2607.4,0.06893332]
[1724224907145,2.4383,2607.8,2607.2,2.3228]
[1724224907352,2.4383,2607.8,2607.5,0.06893332]
[1724224907523,2.4383,2607.8,2607.2,2.3228]
[1724224907722,2.4383,2607.8,2607.6,0.06893332]
[1724224907962,3.07933,2607.8,2607.2,2.3228]
[1724224908266,2.4383,2607.8,2607.7,0.06893332]
[1724224908463,2.4383,2607.8,2607.2,2.3228]
[1724224908630,2.4383,2607.8,2607.7,0.06893332]
[1724224908968,3.972,2607.9,2607.7,0.06893332]
[1724224909262,3.972,2607.9,2607.2,2.3228]
[1724224909487,6.3398,2607.9,2607.8,0.06892353]
[1724224909634,6.3398,2607.9,2607.3,3.0]
[1724224910041,6.3398,2607.9,2607.4,0.06892353]
[1724224910488,6.3398,2607.9,2607.2,2.3228]
[1724224910629,6.3398,2607.9,2607.5,0.06892353]
[1724224910829,6.3398,2607.9,2607.3,3.0]
[1724224911029,6.3398,2607.9,2607.6,0.06892353]
[1724224911264,6.3398,2607.9,2607.2,2.3228]
[1724224911466,6.3398,2607.9,2607.7,0.06892353]
[1724224911669,6.3398,2607.9,2607.3,3.0]
[1724224911878,6.3398,2607.9,2607.8,0.06892353]
[1724224912370,6.3398,2607.9,2607.2,2.3228]
[1724224912575,1.655,2607.5,2607.2,2.3228]
[1724224912864,1.655,2607.5,2607.3,0.53228]
[1724224913070,1.655,2607.5,2607.3,3.53228]
[1724224914047,4.1266,2607.5,2607.3,0.53228]
[1724224914243,4.1266,2607.5,2607.1,3.0]
[1724224914445,1.655,2607.3,2607.1,3.0]
[1724224914882,1.655,2607.3,2606.9,5.3792]
[1724224916885,1.655,2607.3,2607.0,0.0690705]
[1724224917071,1.655,2607.3,2607.0,0.65236755]
[1724224917271,1.655,2607.3,2607.0,3.65236755]
[1724224919055,1.655,2607.1,2607.0,3.65236755]
[1724224919396,1.655,2607.1,2607.0,0.0690705]
[1724224919700,1.655,2607.1,2606.7,9.6804]
[1724224919896,1.655,2607.1,2607.0,0.06906071]
[1724224920102,1.655,2607.1,2606.7,9.6804]
[1724224920276,1.655,2607.1,2607.0,0.06906071]
[1724224920463,1.655,2607.1,2606.7,9.6804]
[1724224920671,1.655,2607.1,2607.0,0.06906071]
[1724224920868,1.655,2607.1,2606.8,4.22291]
[1724224921066,1.655,2607.1,2607.0,0.06906071]
[1724224921313,1.655,2607.1,2606.8,4.22291]
[1724224921459,1.655,2607.1,2607.0,0.06906071]
[1724224921660,1.655,2607.1,2606.8,4.22291]
[1724224921898,1.655,2607.1,2607.0,0.06906071]
[1724224922057,1.655,2607.3,2606.9,0.649331]
[1724224922400,1.655,2607.3,2607.0,0.06921747]
[1724224924511,1.655,2607.3,2607.0,0.44107232]
[1724224924814,1.655,2607.3,2607.0,2.70537232]
[1724224926793,2.4792,2607.9,2607.0,2.70537232]
[1724224926994,1.655,2607.8,2607.1,3.0]
[1724224927183,1.655,2607.8,2607.2,0.57053723]
[1724224927633,1.655,2607.6,2607.3,0.06903129]
[1724224927920,1.655,2607.6,2607.2,0.57053723]
[1724224928118,1.655,2607.6,2607.3,0.42608501]
[1724224929389,2.4792,2607.9,2607.3,0.42608501]
[1724224929725,1.655,2607.7,2607.3,0.42608501]
[1724224930737,1.655,2607.5,2607.3,0.42608501]
[1724224932826,4.0136,2607.5,2607.3,0.06903129]
[1724224933203,4.0136,2607.5,2607.0,3.75655485]
[1724224933398,1.655,2607.3,2607.0,3.75655485]
[1724224933937,1.655,2607.3,2607.0,0.37185485]
[1724224934142,0.07703148,2607.8,2606.7,0.3847]
[1724224934143,4.1526,2607.1,2606.7,0.3847]
[1724224934343,1.655,2606.9,2606.7,0.3847]
[1724224934542,2.41,2606.8,2606.6,7.41]
[1724224934727,1.655,2606.7,2606.2,2.4718]
[1724224934932,1.655,2606.4,2606.1,0.3847]
[1724224935241,1.655,2606.4,2606.1,1.88675]
[1724224936240,1.655,2606.4,2606.1,4.88675]
[1724224936440,2.41,2606.8,2606.1,4.88675]
[1724224937672,6.2332,2607.0,2606.1,4.88675]
[1724224937837,6.2332,2607.0,2606.2,1.735855]
[1724224938104,6.2332,2607.0,2606.2,4.735855]
[1724224939106,6.2332,2607.0,2606.3,2.2837]
[1724224939418,6.2332,2607.0,2606.3,5.2837]
[1724224945830,6.2332,2607.0,2606.3,3.0]
[1724224946034,6.3807,2606.7,2606.2,3.0]
[1724224946231,2.4057,2606.7,2606.2,3.0]
[1724224946921,2.4057,2606.7,2606.3,0.07050131]
[1724224948221,2.4057,2606.7,2606.0,10.0]
[1724224948222,2.48273148,2606.7,2606.0,10.0]
[1724224948556,2.48273148,2606.7,2606.4,0.07050131]
[1724224948757,0.64577315,2606.6,2606.0,10.0]
[1724224949057,2.4981,2606.5,2606.0,10.0]
[1724224949256,2.4981,2606.5,2606.1,0.07060915]
[1724224956026,2.2859,2606.3,2606.1,0.07060915]
[1724224956448,1.657,2606.2,2606.1,0.07060915]
[1724224956663,2.05899315,2606.2,2606.1,0.07060915]
[1724224958472,1.657,2606.2,2606.1,0.07060915]
[1724224959689,4.0016,2606.2,2606.1,0.07060915]
[1724224959979,3.49244139,2606.2,2606.1,0.07060915]
[1724224964777,4.0016,2606.2,2606.1,0.07060915]
[1724224974460,1.657,2606.2,2606.1,0.07060915]
[1724224979908,3.9825,2606.2,2606.1,0.07060915]
[1724224980292,4.38075,2606.2,2606.1,0.07060915]
[1724224981483,4.45778148,2606.2,2606.1,0.07060915]
[1724224981666,4.45778148,2606.2,2606.0,10.0]
[1724224981667,2.3255,2606.1,2606.0,10.0]
[1724224981872,2.3255,2606.1,2606.0,10.07149164]
[1724224986792,3.9825,2606.1,2606.0,10.07149164]
[1724224987002,4.70923624,2606.1,2606.0,10.07149164]
[1724224987517,4.78626772,2606.1,2606.0,10.07149164]
[1724224988527,7.51881721,2606.1,2606.0,10.07149164]
[1724224988911,4.70923624,2606.1,2606.0,10.07149164]
[1724224989318,7.5183951,2606.1,2606.0,10.07149164]
[1724224989528,4.70923624,2606.1,2606.0,10.07149164]
[1724224990261,7.5183951,2606.1,2606.0,10.07149164]
[1724224990440,4.70923624,2606.1,2606.0,10.07149164]
[1724224991234,7.5183951,2606.1,2606.0,10.07149164]
[1724224991403,4.70923624,2606.1,2606.0,10.07149164]
[1724224991608,7.5183951,2606.1,2606.0,10.07149164]
[1724224992950,7.52039074,2606.1,2606.0,10.07149164]
[1724224993638,7.52083603,2606.1,2606.0,10.07149164]
[1724224995807,3.9825,2606.1,2606.0,10.07149164]
[1724224996361,1.657,2606.1,2606.0,10.07149164]
[1724225000622,2.81305725,2606.5,2606.0,12.56779164]
[1724225000843,1.657,2606.2,2606.0,12.56779164]
[1724225001043,1.657,2606.2,2606.1,1.25677916]
[1724225001244,1.657,2606.2,2606.0,12.56779164]
[1724225001404,1.657,2606.2,2606.1,0.0722076]
[1724225007794,3.9897,2606.2,2606.1,0.0722076]
[1724225014553,1.657,2606.2,2606.1,0.0722076]
[1724225014765,3.32168802,2606.8,2606.1,1.32786836]
[1724225014766,2.81201102,2606.6,2606.1,1.32786836]
[1724225014967,1.657,2606.5,2606.2,2.4844]
[1724225015190,1.657,2606.5,2606.3,0.38122684]
[1724225015505,1.657,2606.5,2606.3,0.45341483]
[1724225018659,1.657,2606.5,2606.3,0.4518534]
[1724225018855,1.657,2606.5,2606.4,2.4274]
[1724225019060,1.657,2606.7,2606.4,2.4274]
[1724225019259,1.657,2606.7,2606.5,0.35289453]
[1724225026506,1.657,2606.7,2606.5,0.07218799]
[1724225030306,1.657,2606.7,2606.6,0.07155052]
[1724225030474,1.657,2606.7,2606.3,3.0]
[1724225030682,1.657,2606.4,2606.2,2.4776]
[1724225033381,1.657,2606.4,2606.1,3.0]
[1724225034413,1.657,2606.4,2606.1,4.5369]
[1724225035782,1.657,2606.4,2606.1,3.0]
[1724225036797,1.657,2606.4,2606.2,0.07114839]
[1724225037519,3.9499,2606.6,2606.2,0.07114839]
[1724225039715,1.657,2606.4,2606.2,0.07114839]
[1724225041307,1.657,2606.4,2606.0,10.0]
[1724225041511,1.657,2606.4,2606.1,0.07137394]
[1724225042790,2.4225,2606.8,2606.2,2.475]
[1724225043013,1.657,2606.7,2606.2,2.475]
[1724225043215,1.657,2606.7,2606.3,0.07140336]
[1724225056770,2.80963729,2607.0,2606.4,2.4773]
[1724225056968,5.80608406,2607.2,2606.5,2.89787034]
[1724225056969,4.1442,2607.2,2606.5,2.89787034]
[1724225057114,4.1442,2607.2,2606.5,2.96895012]
[1724225057569,1.657,2607.4,2606.6,2.4323]
[1724225057730,3.32146827,2607.8,2606.8,2.4323]
[1724225057731,4.46882499,2607.6,2606.8,2.4323]
[1724225057975,1.657,2607.6,2606.9,0.07106017]
[1724225058150,1.657,2607.4,2606.9,0.07106017]
[1724225060816,2.81213265,2607.8,2607.1,2.4788]
[1724225061011,1.657,2607.6,2607.1,2.4788]
[1724225061155,1.657,2607.6,2607.2,0.07049163]
[1724225062479,0.33218317,2607.9,2607.2,0.07049163]
[1724225062709,0.33218317,2607.9,2607.1,2.4788]
[1724225062710,1.657,2607.6,2607.1,2.4788]
[1724225062876,1.657,2607.6,2607.2,0.07049163]
[1724225075127,1.657,2607.4,2607.2,0.07049163]
[1724225075945,1.657,2607.4,2607.3,0.06965839]
[1724225076100,1.657,2607.4,2606.8,2.3265]
[1724225076454,1.657,2607.2,2606.9,0.06965839]
[1724225077506,1.657,2607.4,2606.9,0.06965839]
[1724225078963,1.657,2607.4,2606.9,0.30927423]
[1724225079163,1.657,2607.4,2606.9,3.30927423]
[1724225079570,1.657,2607.2,2606.9,3.06965839]
[1724225079861,4.0877,2607.2,2606.9,0.06965839]
[1724225080164,1.657,2607.0,2606.6,5.4579]
[1724225080395,1.657,2607.0,2606.6,3.74469]
[1724225080661,1.657,2607.0,2606.7,3.0]
[1724225081462,4.0877,2607.2,2606.7,3.0]
[1724225081767,4.0877,2607.2,2606.8,0.06976619]
[1724225082074,4.0877,2607.2,2606.7,3.0]
[1724225082665,1.657,2607.2,2606.8,0.06976619]
[1724225082961,2.437,2607.4,2606.9,2.2765]
[1724225082962,1.657,2607.4,2606.9,2.2765]
[1724225083130,1.657,2607.4,2607.0,0.06976619]
[1724225083824,2.2721,2607.6,2607.0,0.06976619]
[1724225084026,1.657,2607.4,2607.0,0.06976619]
[1724225094590,1.657,2607.4,2607.0,0.60439281]
[1724225095012,2.2721,2607.6,2607.0,0.60439281]
[1724225095013,1.657,2607.6,2607.0,0.60439281]
[1724225095181,1.657,2607.6,2607.1,2.2747]
[1724225095550,1.657,2607.6,2607.2,0.0695408]
[1724225101069,1.657,2607.4,2607.2,0.0695408]
[1724225102256,5.31060281,2607.8,2607.2,0.0695408]